Cogmind - Beta 13 @@@ ROGUE MODE // 2024.06.15 @ 11:05:53 Player: Sionnis Result: Escaped! Performance ------------- Evolutions (9) 4500 Regions Visited (17) 3400 Robots Destroyed (6) 30 Value Destroyed (89) 89 Prototype IDs (2) 40 Alien Tech Used (0) 0 Bonus (28869) 28869 TOTAL SCORE: 36928 Bonus ------- Pacifist 8000 Follower Combat Kills 7 Entered Garrisons 200 Used RIF Installer 500 Entered DSFs 1000 Aligned with FarCom 300 Win 3000 Win Speed 15862 Cogmind --------- Core Integrity 1376/1600 Matter 141/300 Energy 188/190 System Corruption 9% Temperature Cool (6) Movement Flying (34) Location To Epsilon Eridani Parts ------- > --- POWER (6) -------- Light Quantum Reactor > --- PROPULSION (7) --- Impulse Thruster Impulse Thruster Cooled Field Propulsion Drive > --- UTILITY (10) ----- Power Amplifier Improved Transmission Jammer Hacking Suite Hacking Suite System Shield Improved System Shield > --- WEAPON (2) ------- (None) > --- INVENTORY (5) ---- Light Quantum Reactor Stasis Canceller Advanced ECM Suite Graphene Brace Peak State ------------ > --- POWER ------------ Light Deuterium Engine Micro Nuclear Core Light Quantum Reactor Light Quantum Reactor Light Quantum Reactor Light Quantum Reactor > --- PROPULSION ------- VTOL Module Cesium-ion Thruster Cesium-ion Thruster Cesium-ion Thruster Impulse Thruster Impulse Thruster Impulse Thruster > --- UTILITY ---------- Power Amplifier Gravity Neutralizer Enhanced Optical Array Improved Transmission Jammer Improved Light Armor Plating Improved Medium Armor Plating Hacking Suite Hacking Suite Hacking Suite System Shield > --- WEAPON ----------- Mini Grenade Launcher Enhanced Force Lance > --- INVENTORY -------- Light Quantum Reactor Light Quantum Reactor Stasis Canceller [Rating: 128] Favorites ----------- Power Light Deuterium Engine Engine Light Deuterium Engine Power Core Micro Nuclear Core Reactor Light Quantum Reactor Propulsion Cesium-ion Thruster Flight Unit Cesium-ion Thruster Utility Hacking Suite Device Gravity Neutralizer Processor Enhanced Optical Array Hackware Hacking Suite Protection Improved Medium Armor Plating Weapon Force Lance Launcher Mini Grenade Launcher Impact Weapon Flail Piercing Weapon Force Lance Build | -11 -10 -9 -9 -9 -8 -8 -7 -7 -6 -5 -4 -4 -3 -2 -1 -1 -1 ------- Run | Yrd Mat Mat Min Exi Min Mat Fac DSF Fac Fac Fac DSF Res Res Acc Gar Acc Slots Evolved 18 | . . 2 . . . 2 2 . 2 2 2 . 2 2 2 . . Power 5 | . . . . . . . . . 1 . 1 . 1 1 1 . . Propulsion 5 | . . 1 . . . 1 1 . . 1 . . . 1 . . . Utility 8 | . . 1 . . . 1 1 . 1 1 1 . 1 . 1 . . Weapon . | . . . . . . . . . . . . . . . . . . Parts Attached 57 | 1 2 4 . . 1 7 2 4 3 2 1 . 5 2 7 2 14 Power 15 | 1 . . . . . . 1 . 1 . . . . . 4 . 8 Engine 6 | 1 . . . . . . 1 . . . . . . . . . 4 Core 2 | . . . . . . . . . 1 . . . . . . . 1 Reactor 7 | . . . . . . . . . . . . . . . 4 . 3 Propulsion 16 | . 2 1 . . 1 4 1 . . 1 . . 2 2 . . 2 Treads . | . . . . . . . . . . . . . . . . . . Leg . | . . . . . . . . . . . . . . . . . . Wheel . | . . . . . . . . . . . . . . . . . . Hover . | . . . . . . . . . . . . . . . . . . Flight 16 | . 2 1 . . 1 4 1 . . 1 . . 2 2 . . 2 Utility 20 | . . 1 . . . 2 . 3 2 1 1 . 2 . 2 2 4 Device 7 | . . . . . . 1 . . 1 . 1 . . . 1 2 1 Storage . | . . . . . . . . . . . . . . . . . . Processor 1 | . . . . . . . . . . . . . 1 . . . . Hackware 7 | . . . . . . . . 3 1 . . . 1 . . . 2 Protection 5 | . . 1 . . . 1 . . . 1 . . . . 1 . 1 Artifact . | . . . . . . . . . . . . . . . . . . Weapon 6 | . . 2 . . . 1 . 1 . . . . 1 . 1 . . Energy Gun . | . . . . . . . . . . . . . . . . . . Energy Cannon . | . . . . . . . . . . . . . . . . . . Ballistic Gun . | . . . . . . . . . . . . . . . . . . Ballistic Cannon . | . . . . . . . . . . . . . . . . . . Launcher 1 | . . . . . . 1 . . . . . . . . . . . Special Weapon . | . . . . . . . . . . . . . . . . . . Impact Weapon 3 | . . 2 . . . . . 1 . . . . . . . . . Slashing Weapon . | . . . . . . . . . . . . . . . . . . Piercing Weapon 2 | . . . . . . . . . . . . . 1 . 1 . . Special Melee Weapon . | . . . . . . . . . . . . . . . . . . Unidentified Prototypes 2 | . . . . . . . . . 1 . . . . . . . 1 Corrupted Parts 1 | . . . . . . 1 . . . . . . . . . . . System Corruption 4 | . . . . . . 4 . . . . . . . . . . . Parts Lost 15 | . . . . . 1 . . . . . . . 1 . . 1 12 Power 2 | . . . . . . . . . . . . . . . . . 2 Propulsion 7 | . . . . . 1 . . . . . . . 1 . . 1 4 Utility 5 | . . . . . . . . . . . . . . . . . 5 Weapon 1 | . . . . . . . . . . . . . . . . . 1 Highest Loss Streak 6 | . . . . . 1 . . . . . . . 1 . . 1 6 To Critical Strikes . | . . . . . . . . . . . . . . . . . . Average Slot Usage (%) 77 | . 23 55 66 66 66 59 70 88 100 100 94 . 89 84 87 83 76 Engine 5 | . 14 11 11 11 11 9 7 7 6 5 5 . 4 4 4 4 4 Core 1 | . . . . . . . . . 6 5 5 . 4 4 2 . 1 Reactor 2 | . . . . . . . . . . . . . . . 5 4 3 Flight 26 | . 9 33 33 33 33 30 32 38 33 35 31 . 28 28 28 27 22 Device 10 | . . . . . . . 7 7 6 5 10 . 9 8 12 15 16 Processor 2 | . . . . . . . . . . . . . 4 4 4 4 3 Hackware 11 | . . . . . . . . 11 26 23 21 . 18 17 16 12 12 Protection 6 | . . 1 11 11 11 9 7 7 6 11 10 . 9 8 8 8 5 Launcher 2 | . . . . . . 1 7 7 6 5 5 . 4 4 4 4 . Impact Weapon 2 | . . 9 11 11 11 9 7 7 6 5 5 . 2 . . . . Piercing Weapon 2 | . . . . . . . . . . . . . 1 4 4 4 3 Naked Turns . | . . . . . . . . . . . . . . . . . . Heaviest Build 50 | 3 3 12 12 12 12 13 15 15 21 24 25 25 31 31 47 43 50 Greatest Support 58 | 3 8 12 12 12 12 26 30 30 36 40 40 40 40 45 45 48 58 Greatest Overweight (x) 1 | . . . . . . . . . . . . . . . 1 . . Average Overweight (x) . | . . . . . . . . . . . . . . . . . . Largest Inventory Capacity 5 | 5 5 5 5 5 5 5 5 5 5 5 5 5 5 5 5 5 5 Average Capacity 5 | 5 5 5 5 5 5 5 5 5 5 5 5 5 5 5 5 5 5 Most Carried 5 | . 2 3 3 4 4 5 5 5 5 4 3 3 5 4 5 5 5 Average Carried 4 | . . 1 2 3 3 4 4 4 4 3 3 3 4 3 4 4 4 Final Capacity 5 | 5 5 5 5 5 5 5 5 5 5 5 5 5 5 5 5 5 5 Final Carried 5 | . 2 2 3 4 3 5 4 5 5 4 3 3 5 3 5 5 4 Class Distribution -------------------- 74% | Hacker-Sprinter 20% | Sprinter 3% | Hacker-Mutant Dominant Class ---------------- Mutant | -10/Materials Sprinter | -9/Materials Sprinter | -9/Mines Sprinter | -9/Exiles Sprinter | -8/Mines Sprinter | -8/Materials Sprinter | -7/Factory Sprinter | -7/DSF Hacker-Sprinter | -6/Factory Hacker-Sprinter | -5/Factory Hacker-Sprinter | -4/Factory Hacker-Sprinter | -4/DSF Hacker-Sprinter | -3/Research Hacker-Sprinter | -2/Research Hacker-Sprinter | -1/Access Hacker-Sprinter | -1/Garrison Hacker-Sprinter | -1/Access Resources | -11 -10 -9 -9 -9 -8 -8 -7 -7 -6 -5 -4 -4 -3 -2 -1 -1 -1 ----------- Run | Yrd Mat Mat Min Exi Min Mat Fac DSF Fac Fac Fac DSF Res Res Acc Gar Acc Matter Collected 550 | 179 . . 37 54 . 54 . . . . . . . . . . 226 Remotely . | . . . . . . . . . . . . . . . . . . Salvage Created 240 | . . . . . . . . . . . . . . . . . 240 Parts 13 | . . . . . . . . . . . . . . . . . 13 Haulers Intercepted . | . . . . . . . . . . . . . . . . . . Recyclers Shooed . | . . . . . . . . . . . . . . . . . . Parts Field Recycled . | . . . . . . . . . . . . . . . . . . Retrieved Matter . | . . . . . . . . . . . . . . . . . . Parts Self-Destructed . | . . . . . . . . . . . . . . . . . . Prevented . | . . . . . . . . . . . . . . . . . . Kills | -11 -10 -9 -9 -9 -8 -8 -7 -7 -6 -5 -4 -4 -3 -2 -1 -1 -1 ------- Run | Yrd Mat Mat Min Exi Min Mat Fac DSF Fac Fac Fac DSF Res Res Acc Gar Acc Combat Hostiles Destroyed . | . . . . . . . . . . . . . . . . . . Classes Destroyed 5 | . . . . . . . . . . . . . . . . . 5 Worker 1 | . . . . . . . . . . . . . . . . . 1 Builder 2 | . . . . . . . . . . . . . . . . . 2 Recycler 1 | . . . . . . . . . . . . . . . . . 1 Operator 1 | . . . . . . . . . . . . . . . . . 1 Watcher 1 | . . . . . . . . . . . . . . . . . 1 Best Kill Streak 3 | . . . . . . . . . . . . . . . . . 3 Combat Bots Only . | . . . . . . . . . . . . . . . . . . Max Kills in Single Turn 1 | . . . . . . . . . . . . . . . . . 1 Gunslinging . | . . . . . . . . . . . . . . . . . . Exploded . | . . . . . . . . . . . . . . . . . . Melee . | . . . . . . . . . . . . . . . . . . Uniques/NPCs Destroyed . | . . . . . . . . . . . . . . . . . . Combat | -11 -10 -9 -9 -9 -8 -8 -7 -7 -6 -5 -4 -4 -3 -2 -1 -1 -1 -------- Run | Yrd Mat Mat Min Exi Min Mat Fac DSF Fac Fac Fac DSF Res Res Acc Gar Acc Hostile Shots Fired 141 | . . 6 4 . 5 . . 9 . 2 . 23 2 . . 16 74 Missed 76 | . . 3 2 . 1 . . 7 . . . 15 1 . . 12 35 Damage Taken 1754 | . . 45 15 . 120 45 . 72 . 137 . 119 30 . . 101 1070 Core 318 | . . . 9 . . . . 72 . . . 13 . . . . 224 Absorbed by Shields . | . . . . . . . . . . . . . . . . . . Core Remaining (%) 97 | 100 100 . . . 97 100 . 89 100 100 . 98 100 100 . . 86 Volleys Fired . | . . . . . . . . . . . . . . . . . . Largest . | . . . . . . . . . . . . . . . . . . Hottest . | . . . . . . . . . . . . . . . . . . Shots Fired . | . . . . . . . . . . . . . . . . . . Gun . | . . . . . . . . . . . . . . . . . . Cannon . | . . . . . . . . . . . . . . . . . . Launcher . | . . . . . . . . . . . . . . . . . . Special . | . . . . . . . . . . . . . . . . . . Kinetic . | . . . . . . . . . . . . . . . . . . Thermal . | . . . . . . . . . . . . . . . . . . Explosive . | . . . . . . . . . . . . . . . . . . Electromagnetic . | . . . . . . . . . . . . . . . . . . Robot Hit Streak . | . . . . . . . . . . . . . . . . . . Robot Miss Streak . | . . . . . . . . . . . . . . . . . . Penetration Max . | . . . . . . . . . . . . . . . . . . Secondary Targets . | . . . . . . . . . . . . . . . . . . Shots Hit Robots 7 | . . . . . . . . . . . . . . . . . 7 Core Hits 4 | . . . . . . . . . . . . . . . . . 4 Critical Kills . | . . . . . . . . . . . . . . . . . . Critical Parts Destroyed . | . . . . . . . . . . . . . . . . . . Critical Strikes 1 | . . . . . . . . . . . . . . . . . 1 Impale 1 | . . . . . . . . . . . . . . . . . 1 Melee Attacks 38 | . . 1 . . . 1 . 3 . . . . 10 1 . . 22 Impact 12 | . . 1 . . . 1 . 3 . . . . 7 . . . . Slashing . | . . . . . . . . . . . . . . . . . . Piercing 26 | . . . . . . . . . . . . . 3 1 . . 22 Sneak Attacks 5 | . . . . . . . . . . . . . . . . . 5 Combat Hostiles . | . . . . . . . . . . . . . . . . . . Follow-up Attacks . | . . . . . . . . . . . . . . . . . . Damage Inflicted 615 | . . . . . . . . . . . . . . . . . 615 Guns . | . . . . . . . . . . . . . . . . . . Cannons . | . . . . . . . . . . . . . . . . . . Explosions . | . . . . . . . . . . . . . . . . . . Melee 615 | . . . . . . . . . . . . . . . . . 615 Ramming . | . . . . . . . . . . . . . . . . . . Kinetic . | . . . . . . . . . . . . . . . . . . Thermal . | . . . . . . . . . . . . . . . . . . Explosive . | . . . . . . . . . . . . . . . . . . Electromagnetic . | . . . . . . . . . . . . . . . . . . Impact . | . . . . . . . . . . . . . . . . . . Slashing . | . . . . . . . . . . . . . . . . . . Piercing 615 | . . . . . . . . . . . . . . . . . 615 Highest Corruption 9 | . . . . . . 4 . . . . . . . . . . 9 Average Corruption 8 | . . . . . . 4 . . . . . . . . . . 9 Corruption Purged . | . . . . . . . . . . . . . . . . . . Corruption Blocked . | . . . . . . . . . . . . . . . . . . Effects 1 | . . . . . . . . . . . . . . . . . 1 Matter Fused 1 | . . . . . . . . . . . . . . . . . 1 Overload Shots . | . . . . . . . . . . . . . . . . . . Overflow Damage 308 | . . . . . . . . . . . . . . . . . 308 Projectiles . | . . . . . . . . . . . . . . . . . . Explosions . | . . . . . . . . . . . . . . . . . . Melee 308 | . . . . . . . . . . . . . . . . . 308 Knockbacks . | . . . . . . . . . . . . . . . . . . Impact . | . . . . . . . . . . . . . . . . . . Kinetic . | . . . . . . . . . . . . . . . . . . Secondary . | . . . . . . . . . . . . . . . . . . Self-Inflicted Damage . | . . . . . . . . . . . . . . . . . . Shots . | . . . . . . . . . . . . . . . . . . Rammed . | . . . . . . . . . . . . . . . . . . Targets Rammed . | . . . . . . . . . . . . . . . . . . Kicked . | . . . . . . . . . . . . . . . . . . Crushed . | . . . . . . . . . . . . . . . . . . Highest Temperature 295 | . . 4 . . 40 . 8 . 128 46 4 . 56 12 29 50 295 Average Temperature 87 | . . 4 . . 17 . 4 . 55 30 4 . 14 8 14 17 124 Received Heat Transfer 186 | . . 18 . . 66 . . . . . . 12 9 . . 9 72 Effects 7 | . . . . . . . . . . . . . . . . . 7 Energy Bleed 3 | . . . . . . . . . . . . . . . . . 3 Interference 4 | . . . . . . . . . . . . . . . . . 4 Siege Activations . | . . . . . . . . . . . . . . . . . . Robots Corrupted . | . . . . . . . . . . . . . . . . . . Combat Hostiles . | . . . . . . . . . . . . . . . . . . Parts Fried . | . . . . . . . . . . . . . . . . . . Impact Corruptions . | . . . . . . . . . . . . . . . . . . Robots Melted . | . . . . . . . . . . . . . . . . . . Combat Hostiles . | . . . . . . . . . . . . . . . . . . Parts Melted . | . . . . . . . . . . . . . . . . . . Heat Transferred . | . . . . . . . . . . . . . . . . . . Parts Sabotaged . | . . . . . . . . . . . . . . . . . . Parts Stolen . | . . . . . . . . . . . . . . . . . . Parts Stripped . | . . . . . . . . . . . . . . . . . . Power Chain Reactions . | . . . . . . . . . . . . . . . . . . Alert | -11 -10 -9 -9 -9 -8 -8 -7 -7 -6 -5 -4 -4 -3 -2 -1 -1 -1 ------- Run | Yrd Mat Mat Min Exi Min Mat Fac DSF Fac Fac Fac DSF Res Res Acc Gar Acc Peak Influence 240 | . 15 57 123 . . 31 14 25 42 20 9 21 45 42 24 131 240 Initial 78 | . . 5 22 . . . 14 9 12 20 9 6 11 24 24 31 78 Average 79 | . 4 20 58 . . 9 14 12 29 20 9 11 32 27 24 47 141 Maximum Alert Level 1 | . . . . . . . . . . . . . . . . . 1 Low Security (%) 88 | 100 100 100 100 . 100 100 100 100 100 100 100 100 100 100 100 100 74 Level 1 11 | . . . . . . . . . . . . . . . . . 25 Level 2 . | . . . . . . . . . . . . . . . . . . Level 3 . | . . . . . . . . . . . . . . . . . . Level 4 . | . . . . . . . . . . . . . . . . . . Level 5 . | . . . . . . . . . . . . . . . . . . High Security . | . . . . . . . . . . . . . . . . . . Max Security . | . . . . . . . . . . . . . . . . . . Squads Dispatched 4 | . . . . . . . . 1 1 . . 1 . . . . 1 Investigation . | . . . . . . . . . . . . . . . . . . Extermination 1 | . . . . . . . . . . . . . . . . . 1 Reinforcement 3 | . . . . . . . . 1 1 . . 1 . . . . . Assault . | . . . . . . . . . . . . . . . . . . Garrison . | . . . . . . . . . . . . . . . . . . Intercept . | . . . . . . . . . . . . . . . . . . Searches Triggered . | . . . . . . . . . . . . . . . . . . Construction Impeded . | . . . . . . . . . . . . . . . . . . Haulers Reinforced . | . . . . . . . . . . . . . . . . . . Active Scanning Responses . | . . . . . . . . . . . . . . . . . . Cargo Convoy Interrupts . | . . . . . . . . . . . . . . . . . . Stealth | -11 -10 -9 -9 -9 -8 -8 -7 -7 -6 -5 -4 -4 -3 -2 -1 -1 -1 --------- Run | Yrd Mat Mat Min Exi Min Mat Fac DSF Fac Fac Fac DSF Res Res Acc Gar Acc Distress Signals 1 | . . . . . . . . . . . . . . . . . 1 Communications Jammed 17 | . . . . . . . . . . . . . . . . . 17 Distress Signals 17 | . . . . . . . . . . . . . . . . . 17 Times Spotted 73 | . 1 5 9 . 6 3 . 3 1 1 . 5 6 1 . 7 25 Peak Tracking Total 9 | . 1 4 5 . 5 3 . 3 1 1 . 5 5 1 . 9 8 Tactical Retreats 7 | . . 1 . . . . . . . . . . . . . . 6 Traps | -11 -10 -9 -9 -9 -8 -8 -7 -7 -6 -5 -4 -4 -3 -2 -1 -1 -1 ------- Run | Yrd Mat Mat Min Exi Min Mat Fac DSF Fac Fac Fac DSF Res Res Acc Gar Acc Traps Triggered 3 | . . . . . . 1 . . . . . . . . . 2 . Indirectly . | . . . . . . . . . . . . . . . . . . Trap Hack Attempts . | . . . . . . . . . . . . . . . . . . Triggered . | . . . . . . . . . . . . . . . . . . Disarmed 4 | . . . . . . . . . . . . . 4 . . . . Reprogrammed . | . . . . . . . . . . . . . . . . . . Reused . | . . . . . . . . . . . . . . . . . . Traps Extracted . | . . . . . . . . . . . . . . . . . . Installed . | . . . . . . . . . . . . . . . . . . Triggered . | . . . . . . . . . . . . . . . . . . Machines | -11 -10 -9 -9 -9 -8 -8 -7 -7 -6 -5 -4 -4 -3 -2 -1 -1 -1 ---------- Run | Yrd Mat Mat Min Exi Min Mat Fac DSF Fac Fac Fac DSF Res Res Acc Gar Acc Machines Disabled . | . . . . . . . . . . . . . . . . . . Max in Single Turn . | . . . . . . . . . . . . . . . . . . Machines Repaired . | . . . . . . . . . . . . . . . . . . Machines Dismantled . | . . . . . . . . . . . . . . . . . . Machines Sabotaged . | . . . . . . . . . . . . . . . . . . Overloaded Fab Kills . | . . . . . . . . . . . . . . . . . . Hacking | -11 -10 -9 -9 -9 -8 -8 -7 -7 -6 -5 -4 -4 -3 -2 -1 -1 -1 --------- Run | Yrd Mat Mat Min Exi Min Mat Fac DSF Fac Fac Fac DSF Res Res Acc Gar Acc Machines Accessed 18 | . 2 3 . 1 . 1 1 . 3 . 1 . 2 . 3 1 . Terminals 14 | . 2 3 . . . 1 1 . 1 . 1 . 2 . 2 1 . Fabricators . | . . . . . . . . . . . . . . . . . . Repair Stations . | . . . . . . . . . . . . . . . . . . Recycling Units 2 | . . . . . . . . . 2 . . . . . . . . Scanalyzers . | . . . . . . . . . . . . . . . . . . Garrison Access 1 | . . . . . . . . . . . . . . . 1 . . Total Hacks 37 | . 4 8 . 4 . 3 1 . 3 . 1 . 5 . 5 3 . Successful 18 | . . 5 . 4 . . 1 . 2 . 1 . 4 . 1 . . Failed 19 | . 4 3 . . . 3 . . 1 . . . 1 . 4 3 . Catastrophic 4 | . . 1 . . . . . . 1 . . . . . 2 . . Database Lockouts . | . . . . . . . . . . . . . . . . . . Manual 17 | . 4 8 . . . 3 . . 1 . . . . . 1 . . Terminals 29 | . 4 8 . . . 3 1 . 1 . 1 . 5 . 3 3 . Fabricators . | . . . . . . . . . . . . . . . . . . Repair Stations . | . . . . . . . . . . . . . . . . . . Recycling Units 2 | . . . . . . . . . 2 . . . . . . . . Scanalyzers . | . . . . . . . . . . . . . . . . . . Garrison Access 2 | . . . . . . . . . . . . . . . 2 . . Terminal Hacks 14 | . . 4 . 4 . . 1 . . . 1 . 4 . . . . Record 4 | . . . . 4 . . . . . . . . . . . . . Robot Analysis 4 | . . 4 . . . . . . . . . . . . . . . Open DSF 2 | . . . . . . . 1 . . . 1 . . . . . . Alert Level 1 | . . . . . . . . . . . . . 1 . . . . Disarm Traps 1 | . . . . . . . . . . . . . 1 . . . . Dispatch Records 1 | . . . . . . . . . . . . . 1 . . . . Assault Status 1 | . . . . . . . . . . . . . 1 . . . . Fabricator Hacks . | . . . . . . . . . . . . . . . . . . Repair Station Hacks . | . . . . . . . . . . . . . . . . . . Recycling Unit Hacks 2 | . . . . . . . . . 2 . . . . . . . . Report Inventory 1 | . . . . . . . . . 1 . . . . . . . . Retrieve Components 1 | . . . . . . . . . 1 . . . . . . . . Scanalyzer . | . . . . . . . . . . . . . . . . . . Garrison Access Hacks 1 | . . . . . . . . . . . . . . . 1 . . Unlock Access 1 | . . . . . . . . . . . . . . . 1 . . Unauthorized Hacks 1 | . . 1 . . . . . . . . . . . . . . . Terminals 1 | . . 1 . . . . . . . . . . . . . . . Assimilate 1 | . . 1 . . . . . . . . . . . . . . . Fabricators . | . . . . . . . . . . . . . . . . . . Repair Stations . | . . . . . . . . . . . . . . . . . . Recycling Units . | . . . . . . . . . . . . . . . . . . Scanalyzers . | . . . . . . . . . . . . . . . . . . Garrison Access . | . . . . . . . . . . . . . . . . . . Data Cores Recovered . | . . . . . . . . . . . . . . . . . . Used . | . . . . . . . . . . . . . . . . . . Hacking Detections 14 | . 2 3 . . . 1 1 . 1 . . . 2 . 3 1 . Full Trace Events 1 | . . . . . . . . . . . . . . . . 1 . Feedback Events . | . . . . . . . . . . . . . . . . . . Feedback Blocked . | . . . . . . . . . . . . . . . . . . Robot Schematics Acquired . | . . . . . . . . . . . . . . . . . . Robots Built . | . . . . . . . . . . . . . . . . . . Authchips . | . . . . . . . . . . . . . . . . . . Time . | . . . . . . . . . . . . . . . . . . Total Robot Build Rating . | . . . . . . . . . . . . . . . . . . Part Schematics Acquired . | . . . . . . . . . . . . . . . . . . Parts Built . | . . . . . . . . . . . . . . . . . . Authchips . | . . . . . . . . . . . . . . . . . . Time . | . . . . . . . . . . . . . . . . . . Total Part Build Rating . | . . . . . . . . . . . . . . . . . . Parts Repaired . | . . . . . . . . . . . . . . . . . . Time . | . . . . . . . . . . . . . . . . . . Parts Recycled . | . . . . . . . . . . . . . . . . . . Recycled Matter . | . . . . . . . . . . . . . . . . . . Retrieved Matter . | . . . . . . . . . . . . . . . . . . Retrieved Components 2 | . . . . . . . . . 2 . . . . . . . . Parts Scanalyzed . | . . . . . . . . . . . . . . . . . . Part Schematics Acquired . | . . . . . . . . . . . . . . . . . . Parts Damaged . | . . . . . . . . . . . . . . . . . . Bothacking | -11 -10 -9 -9 -9 -8 -8 -7 -7 -6 -5 -4 -4 -3 -2 -1 -1 -1 ------------ Run | Yrd Mat Mat Min Exi Min Mat Fac DSF Fac Fac Fac DSF Res Res Acc Gar Acc Used RIF Installer 1 | . . . . . . . . . . . . . . . . 1 . Robots Hacked . | . . . . . . . . . . . . . . . . . . Non-combat . | . . . . . . . . . . . . . . . . . . Combat . | . . . . . . . . . . . . . . . . . . Robot Hacks Applied . | . . . . . . . . . . . . . . . . . . Relay Couplers Released . | . . . . . . . . . . . . . . . . . . Fabnet Peak Effective % . | . . . . . . . . . . . . . . . . . . Robots Rewired . | . . . . . . . . . . . . . . . . . . Allies Hacked . | . . . . . . . . . . . . . . . . . . Hacks Repelled . | . . . . . . . . . . . . . . . . . . Allies | -11 -10 -9 -9 -9 -8 -8 -7 -7 -6 -5 -4 -4 -3 -2 -1 -1 -1 -------- Run | Yrd Mat Mat Min Exi Min Mat Fac DSF Fac Fac Fac DSF Res Res Acc Gar Acc Total Allies 1 | . . . 1 . . . . . . . . . . . . . . Largest Group 1 | . . . 1 . . . . . . . . . . . . . . Highest-Rated Group 31 | . . . 31 . . . . . . . . . . . . . . Highest-Rated Ally 31 | . . . 31 . . . . . . . . . . . . . . Total Orders . | . . . . . . . . . . . . . . . . . . Ally Attacks 10 | . . . 10 . . . . . . . . . . . . . . Total Damage 150 | . . . 150 . . . . . . . . . . . . . . Kills 4 | . . . 4 . . . . . . . . . . . . . . Allies Corrupted . | . . . . . . . . . . . . . . . . . . Allies Melted . | . . . . . . . . . . . . . . . . . . Intel | -11 -10 -9 -9 -9 -8 -8 -7 -7 -6 -5 -4 -4 -3 -2 -1 -1 -1 ------- Run | Yrd Mat Mat Min Exi Min Mat Fac DSF Fac Fac Fac DSF Res Res Acc Gar Acc Robot Analysis Total 4 | . . 4 . . . . . . . . . . . . . . . Derelict Logs Recovered 1 | . . . 1 . . . . . . . . . . . . . . Drone Launches . | . . . . . . . . . . . . . . . . . . Drone Recoveries . | . . . . . . . . . . . . . . . . . . Exploration | -11 -10 -9 -9 -9 -8 -8 -7 -7 -6 -5 -4 -4 -3 -2 -1 -1 -1 ------------- Run | Yrd Mat Mat Min Exi Min Mat Fac DSF Fac Fac Fac DSF Res Res Acc Gar Acc Turns Passed 1437 | 14 33 53 30 57 31 48 36 24 69 13 3 6 221 15 41 120 623 Spaces Moved 3202 | 26 66 144 100 194 101 102 120 42 183 39 6 29 388 28 108 169 1357 Core 56 | 26 30 . . . . . . . . . . . . . . . . Treads . | . . . . . . . . . . . . . . . . . . Legs . | . . . . . . . . . . . . . . . . . . Wheels . | . . . . . . . . . . . . . . . . . . Hover . | . . . . . . . . . . . . . . . . . . Flight 3146 | . 36 144 100 194 101 102 120 42 183 39 6 29 388 28 108 169 1357 Fastest Speed 20 | 50 32 29 29 29 29 26 23 23 23 20 20 20 20 21 21 21 22 Average Speed 25 | 50 40 29 29 29 29 27 25 23 23 20 20 20 22 21 21 21 25 Slowest Speed 101 | 50 50 29 29 29 29 29 26 23 23 20 20 20 27 21 101 22 34 Overloaded Moves . | . . . . . . . . . . . . . . . . . . Propulsion Burnouts . | . . . . . . . . . . . . . . . . . . Robots Hopped 19 | . 1 . 1 . . . 3 1 . . . 2 1 . . . 10 Cave-ins Triggered 1 | . . . . . . . . . . . . . . . . . 1 Exploration Rate (%) 22 | 3 20 25 31 59 44 14 3 44 8 2 . 42 13 1 4 35 42 Regions Visited 17 Branch Regions 3 Pre-discovered Areas 2 | . . . 1 1 . . . . . . . . . . . . . Known Exits Taken 3 | . . . . . . . 1 . . . 1 . . . 1 . . Unknown Exits Taken 11 | 1 1 1 1 1 1 1 . . 1 1 . . 1 1 . . . Scrap Searched 1 | . . . 1 . . . . . . . . . . . . . . Spaces Dug 26 | . . 1 . . . 1 . 1 . . . . 7 1 . . 15 Terrain Destroyed 26 | . . 1 . . . 1 . 1 . . . . 7 1 . . 15 Melee 26 | . . 1 . . . 1 . 1 . . . . 7 1 . . 15 Projectile . | . . . . . . . . . . . . . . . . . . AOE . | . . . . . . . . . . . . . . . . . . Terrain Rammed . | . . . . . . . . . . . . . . . . . . Walls Destroyed . | . . . . . . . . . . . . . . . . . . Machines Disabled . | . . . . . . . . . . . . . . . . . . Actions | -11 -10 -9 -9 -9 -8 -8 -7 -7 -6 -5 -4 -4 -3 -2 -1 -1 -1 --------- Run | Yrd Mat Mat Min Exi Min Mat Fac DSF Fac Fac Fac DSF Res Res Acc Gar Acc Total 3713 | 26 69 151 99 194 101 118 123 48 209 43 6 26 503 34 127 251 1585 Wait 382 | . 1 . . . . . . . 21 2 . . 91 4 . 78 185 Move 3153 | 25 63 143 97 193 100 101 114 39 182 38 5 25 386 27 108 168 1339 Hop 13 | . 1 . 1 . . . 2 1 . . . 1 . . . . 7 Pick Up 36 | . 2 2 1 1 . 5 2 1 2 1 . . 6 . 5 2 6 Fast Attach 22 | 1 2 2 . . . 3 . 4 1 . . . 2 . 3 . 4 Attach 20 | . . 1 . . 1 1 1 . 2 2 1 . 1 2 4 . 4 Detach 5 | . . . . . . . . . . . . . . . 2 . 3 Swap 15 | . . 1 . . . 3 1 . . . . . 2 . . 2 6 Drop 29 | . . 1 . . . 4 3 . 1 . . . 5 . 5 1 9 Fire . | . . . . . . . . . . . . . . . . . . Melee 38 | . . 1 . . . 1 . 3 . . . . 10 1 . . 22 Ram . | . . . . . . . . . . . . . . . . . . Kick . | . . . . . . . . . . . . . . . . . . Crush . | . . . . . . . . . . . . . . . . . . Escape Stasis . | . . . . . . . . . . . . . . . . . . Rewire . | . . . . . . . . . . . . . . . . . . Trap . | . . . . . . . . . . . . . . . . . . Miscellaneous . | . . . . . . . . . . . . . . . . . . Route ------- -11/Scrapyard -10/Materials -9/Materials -9/Mines -9/Exiles -8/Mines -8/Materials -7/Factory (discovered 2 exits: [*Low] / DSF) -7/DSF -6/Factory -5/Factory -4/Factory -4/DSF -3/Research -2/Research -1/Access -1/Garrison -1/Access To Epsilon Eridani History --------- Turn | Location | Event 3 | -11/Scrapyard | Discovered new exit (range 15) 15 | -11/Scrapyard | Entered Materials 44 | -10/Materials | Discovered new exit (range 13) 48 | -10/Materials | Entered another Materials area 48 | -9/Materials | Evolved 2 slots: Propulsion x1, Utility x1 99 | -9/Materials | Discovered new exit (range 8) 101 | -9/Materials | Entered Mines 104 | -9/Mines | Received a Mining Laser from a helpful Derelict 114 | -9/Mines | Learned location of Storage (-9) 130 | -9/Mines | Deemed a non-threat by the Exiles lab entrance 130 | -9/Mines | Discovered new exit (range 5) 131 | -9/Mines | Entered Exiles 138 | -9/Exiles | Met 8R-AWN 143 | -9/Exiles | Met EX-HEX 164 | -9/Exiles | Met EX-BIN 167 | -9/Exiles | Aligned with FarCom system 168 | -9/Exiles | Given EX-Vault access code 176 | -9/Exiles | Met EX-DEC 177 | -9/Exiles | Learned location of Zion (-6) 186 | -9/Exiles | Discovered new exit (range 10) 188 | -9/Exiles | Entered Mines 216 | -8/Mines | Discovered new exit (range 10) 219 | -8/Mines | Entered Materials 219 | -8/Materials | Evolved 2 slots: Propulsion x1, Utility x1 266 | -8/Materials | Discovered new exit (range 5) 267 | -8/Materials | Entered Factory 267 | -7/Factory | Evolved 2 slots: Propulsion x1, Utility x1 278 | -7/Factory | Discovered new exit (range 15) 297 | -7/Factory | Identified exit to DSF 303 | -7/Factory | Entered DSF 320 | -7/DSF | Additional patrols routed to DSF 324 | -7/DSF | Discovered new exit (range 14) 327 | -7/DSF | Entered Factory 327 | -6/Factory | Evolved 2 slots: Power x1, Utility x1 387 | -6/Factory | Discovered new exit (range 12) 396 | -6/Factory | Entered another Factory area 396 | -5/Factory | Evolved 2 slots: Propulsion x1, Utility x1 404 | -5/Factory | Discovered new exit (range 16) 409 | -5/Factory | Entered another Factory area 409 | -4/Factory | Evolved 2 slots: Power x1, Utility x1 412 | -4/Factory | Identified exit to DSF 412 | -4/Factory | Entered DSF 416 | -4/DSF | Discovered new exit (range 13) 418 | -4/DSF | Entered Research 418 | -3/Research | Evolved 2 slots: Power x1, Utility x1 552 | -3/Research | Found Enh. Force Lance 620 | -3/Research | Build established: Hacker-Sprinter 635 | -3/Research | Discovered new exit (range 6) 639 | -3/Research | Entered another Research area 639 | -2/Research | Evolved 2 slots: Power x1, Propulsion x1 651 | -2/Research | Discovered new exit (range 6) 654 | -2/Research | Entered Access 654 | -1/Access | Evolved 2 slots: Power x1, Utility x1 695 | -1/Access | Identified exit to Garrison 695 | -1/Access | Entered Garrison 698 | -1/Garrison | Installed Relay Interface Framework 793 | -1/Garrison | Spotted B-99 Colossus 794 | -1/Garrison | Triggered checkpoint 794 | -1/Garrison | Triggered checkpoint 799 | -1/Garrison | Discovered new exit (range 21) 815 | -1/Garrison | Entered Access 1183 | -1/Access | Spotted B-99 Colossus 1264 | -1/Access | Spotted B-99 Colossus 1301 | -1/Access | Spotted B-99 Colossus 1301 | -1/Access | Spotted B-99 Colossus 1326 | -1/Access | Lost 6 parts (2p2n2u) 1426 | -1/Access | Crushed by falling debris 1436 | -1/Access | Discovered new exit (range 8) 1438 | *** | Escaped! Last Messages --------------- 01426_ Enh. Optical Array destroyed. 01426_ System corrupted by crushing effect (+1). 01426_ Force Lance destroyed. 01426_ System corrupted by crushing effect (+4). 01431_ System corrupted: Matter fused (-9). Sealed Barrier opened remotely. 01436_ EXIT=FOUND 01436_ The Access Shell folds into the floor. 01437_ Field Propulsion Array destroyed. 01437_ Slug penetrates Reinforced Barrier. 01437_ Penetrated by Slug. 01437_ Adv. Phase Shifter destroyed. 01437_ Penetrated by Slug. 01437_ Impulse Thruster destroyed. 01437_ Penetrated by Slug. 01437_ Knocked back. 01437_ Slug penetrates Reinforced Barrier. 01437_ Penetrated by Slug. 01437_ Slug penetrates Earth. [Achievement: One Last FU] Map ----- +----------------------------------------------------+ | ?????????????????????????????????????????????????? | | ?????????????????????????????????????????????????? | | ?????????????????????????????????????????????????? | | ?????????????????????????????????????????????????? | | ?????????????????????????????????????????????????? | | ?????????????????????????????????????????????????? | | ?????????????????????????????????????????????????? | | ?????????????????????????????????????????????????? | | ?????????????????????????????????????????????????? | | ?????????????????????????????????????????????????? | | #+###################################### ???????? | | ??????? | | Rk ???????? | | ###############/##### ""####??????????????? | | ????????????? ??# ""#?????????????????? | | ??????????? #?# ""#?????????????????? | | ??????????# #?# T#?????????????????? | | ??????????# #?# ""#?????????????????? | | ??????????# ### ""#?????????????????? | | ??????????# ### ""##????????????????? | | ??????????# #% % #????????????????? | | ??????????# ### % #?????????????????? | | ??????????# #?# #?????????????????? | | ??????????# #?# #?????????????????? | | ??????????# #?# #?????????????????? | | ??????????#########?# @" #?????????????????? | | ????????????????????# "" #?????????????????? | | ????????????????????# #?????????????????? | | ##########??????????# #?????????????????? | | #??????????# #?????????????????? | | #??????????# #?????????????????? | | #??????????# #?????????????????? | | ""#??????????# #?????????????????? | | ""#??????????# #?????????????????? | | """" ""#??????????# #?????????????????? | | """" G#??????????# BB BB #?????????????????? | | """" ""#??????????# BB BB #?????????????????? | | """" ""#??????????# #?????????????????? | | """" ""#??????????# #?????????????????? | | ##?????????? ???????????????????? | | "##??????????? ????????????????????? | | ######################## #????????????????????? | | ?????????## """T""" # #????????????????????? | | ??????????# ! """ """ # #????????????????????# | | ??????????# + #????????????????????# | | ??????????# # #????????????????????# | | ??????????# # #????????????????????# | | ??????????# # ##########??########## | | ??????????# " * # # #??# # | | ??????????# """ # # #??# # | +----------------------------------------------------+ Best States ------------- Heat Dissipation 52 Energy Generation 99 Energy Capacity 460 Matter Stores 300 Matter Capacity 300 Sight Range 22 Terrain Scan Density 10 ECM Strength 2 Jamming Range 14 Power Amplification 20 Additional Mass Support 12 Armor Coverage 375 Phase Shifting 15 Evasion (%) 80 Offensive Hacking 40 Defensive Hacking 22 Item Schematics ----------------- None Robot Schematics ------------------ None Fabricated ------------ Nothing Alien Tech Used ----------------- None Achievements -------------- More Power To You One Last FU Challenges ------------ None Game ------ Seed gottagofast Manual? 1 Play Time 00:41:26 Cumulative 171.6 hours Start 2024.06.15 @ 10:19:43 End 2024.06.15 @ 11:05:53 Sessions 1 Manual Loads 0 Difficulty Rogue Special Mode None Game No. 177 Rogue 177 Adventurer 0 Explorer 0 Win Type 0 Total 11 Types 10/0/0/1/0/0/0/0/0 Lore% 67 Gallery% 79 Achievement% 67 Wizard Run 0 Options --------- Layout 1 ASCII 0 Keyboard 0 Movement Numpad Keybinds 0 Fullscreen 1 Font 24/Smallcaps Map View 50x35 Zoom Use 0% Tactical HUD 1 Map Filters NONE Filters NONE Steam 1 RUN: e0129567-020d-4dae-adca-4d43c529385f